[Event "GER-chT States Women 2022"]
[Site "Braunfels"]
[Date "2022.06.16"]
[Round "1.20"]
[White "Braun, Kristin"]
[Black "Wilmink, Anna"]
[Result "1/2-1/2"]
[ECO "B38"]
[WhiteElo "1905"]
[BlackElo "1700"]
[Annotator "TA"]
[PlyCount "107"]
[EventDate "2022.06.15"]
[EventType "swiss"]
[EventCountry "GER"]
[SourceTitle "playchess.com"]
[Source "ChessBase"]
[SourceQuality "1"]
[TimeControl "40/5400+30:1800+30"]

{[%evp 21,107,45,69,11,66,32,57,0,21,0,-6,5,12,-106,-96,-106,-60,-62,-25,-102,-38,-107,-66,-129,-48,-64,-52,-70,39,-60,-44,-160,-153,-156,-26,-11,-8,-62,0,0,0,-4,76,78,73,65,74,74,69,72,72,75,90,87,98,91,85,81,135,14,14,14,14,12,12,14,13,10,20,8,8,0,0,0,0,-8,0,0,0,0,0,0,0,0,0,0,0,-3]} 1. e4 {[%emt 0:00:01]} c5 {[%emt 0:00:05]} 2. Nf3 {[%emt 0:00:03]} Nc6 {[%emt 0:00:12]} 3. d4 {[%emt 0:00:15]} cxd4 {[%emt 0:00:08]} 4. Nxd4 {[%emt 0:00:04]} g6 {[%emt 0:00:08]} 5. c4 {[%emt 0:00:09]} Bg7 {[%emt 0:00:06]} 6. Be3 {[%emt 0:00:11]} Nf6 {[%emt 0:00:11]} 7. Nc3 {[%emt 0:00:13]} O-O {[%emt 0:00:09]} 8. Be2 {[%emt 0:00:27]} d6 {[%emt 0:00:17]} 9. O-O {[%emt 0:01:14]} Bd7 {[%emt 0:00:49]} 10. Rc1 {[%emt 0:01:09]} Rc8 {[%emt 0:01:14]} 11. b3 {[%emt 0:00:26]} a6 {[%emt 0:07:02][%cal Ob7b5]} 12. Kh1 {[%emt 0:06:57] B38: Sicilian: Maroczy Bind with 5...Bg7 and 7...0-0.} (12. Nxc6 $14 Bxc6 13. f3) 12... Ne8 {[%emt 0:05:44]} (12... Nxd4 $11 13. Bxd4 Bc6) 13. Nd5 {[%emt 0:05:15]} Nf6 {[%emt 0:02:17] [#]} 14. Bf3 $146 {[%emt 0:13:34]} (14. Nxc6 $14 Bxc6 15. Nb6) ({Predecessor:} 14. Nxc6 Rxc6 15. f3 Re8 16. Qd2 h5 17. b4 e6 18. Nc3 Qe7 19. b5 Rc7 20. Rfd1 axb5 21. cxb5 {1-0 (36) Ryakhovskiy,A (1947)-Degtiarev,V (1891) Elets 2009}) 14... Ne5 {[%emt 0:02:13]} 15. Bg5 {[%emt 0:15:59]} Nxd5 {[%emt 0:02:55]} 16. exd5 {[%emt 0:02:38]} h6 {[%emt 0:03:44]} 17. Bh4 {[%emt 0:00:40]} (17. Bf4 $11) 17... Nxf3 $17 {[%emt 0:04:36]} 18. Nxf3 {[%emt 0:00:17]} g5 {[%emt 0:01:15]} (18... f5 $17 19. Qe2 g5 20. Bxg5 hxg5 21. Nxg5 Qe8) 19. Bg3 $15 {[%emt 0:00:15]} b5 {[%emt 0:04:22]} (19... f5 $5 {[%cal Rf5f4]} 20. h3 b5 $15) 20. cxb5 {[%emt 0:05:38]} (20. h4 $11 {remains equal.}) 20... axb5 {[%emt 0:03:39]} (20... Rxc1 $1 $17 21. Qxc1 Qa5) 21. Qd2 {[%emt 0:03:07]} (21. h4 $1 $15) 21... Qb6 {[%emt 0:02:16]} 22. Rfe1 {[%emt 0:06:12]} (22. h4 $15) 22... Bf6 {[%emt 0:03:00]} (22... Rxc1 $17 23. Rxc1 Rc8 24. Rxc8+ Bxc8) 23. h4 $1 {[%emt 0:01:51][%cal Rh4g5]} g4 {[%emt 0:03:48]} 24. Nh2 {[%emt 0:09:46]} Kg7 {[%emt 0:01:50]} ({Black should play} 24... h5 $15) 25. Rxc8 {[%emt 0:04:54]} ({White should try} 25. Bf4 $14 Rxc1 26. Bxh6+ Kg8 27. Rxc1) 25... Rxc8 {[%emt 0:01:22]} ({Much less strong is} 25... Bxc8 26. f3 $14) 26. Qe2 {[%emt 0:05:44]} (26. Bf4 $15) 26... h5 $17 {[%emt 0:02:30]} 27. f3 {[%emt 0:00:24][%cal Rf3g4] [#]} Rh8 {[%emt 0:03:32]} (27... Qd4 $1 $17 {Threatens to win with ...gxf3.} 28. Bf2 gxf3 29. Qxf3 Qd2 30. Qg3+ Kh8) 28. Bf2 {[%emt 0:02:50]} Qb7 {[%emt 0:04:58]} 29. Qe4 {[%emt 0:02:55]} (29. Qd1 $11) 29... Kf8 {[%emt 0:00:30]} ({Better is} 29... e5 $15) 30. Bd4 $11 {[%emt 0:00:30]} Bxd4 {[%emt 0:05:28]} 31. Qxd4 {[%emt 0:00:01][%cal Rd4h8]} Rg8 {[%emt 0:01:11]} (31... f6 $1 $11) 32. Qe3 $36 {[%emt 0:00:41][%mdl 2048] Black is under strong pressure. White is more active.} Bf5 {[%emt 0:03:19]} 33. Qh6+ {[%emt 0:02:15]} Ke8 {[%emt 0:03:44]} 34. Qxd6 {[%emt 0:00:19]} Be6 {[%emt 0:07:25]} 35. Qc6+ {[%emt 0:00:12]} Qxc6 {[%emt 0:00:45]} 36. dxc6 {[%mdl 4096] Endgame KRB-KRN} Bd5 {[%emt 0:01:15]} 37. Rc1 {[%emt 0:00:21] And now Rc5 would win.} Kd8 {[%emt 0:02:59]} 38. Rc5 {[%emt 0:00:34][%csl LRb5,LRd5]} e6 {[%emt 0:01:23]} 39. Rxb5 {[%emt 0:00:11]} Kc7 {[%emt 0:02:13] [#] Inhibits Rb8.} (39... Kc8 $142) 40. Rb7+ {[%emt 0:00:18]} (40. fxg4 $1 $16 {Strongly threatening g5.} Kxc6 41. Rb4) 40... Kxc6 $11 {[%emt 0:00:14] The position is equal.} 41. Rxf7 {[%emt 0:30:32] aiming for fxg4.} Ra8 $1 {[%emt 0:31:59]} 42. a4 {[%emt 0:03:15] Threatening Rf4.} Bxb3 {[%emt 0:01:47]} 43. fxg4 {[%emt 0:00:04]} Rxa4 {[%emt 0:00:51]} 44. g5 {[%emt 0:06:03] next g6 is good for White.} e5 {[%emt 0:02:21]} 45. Rf1 {[%emt 0:00:00]} Rxh4 {[%emt 0:00:00]} 46. g3 {[%emt 0:00:00]} Ra4 {[%emt 0:00:00]} 47. Nf3 {[%emt 0:00:00]} Bd5 {[%emt 0:00:00]} 48. Kg1 {[%emt 0:00:00]} Bxf3 {[%emt 0:00:00]} 49. Rxf3 {[%emt 0:00:00] KR-KR} Rg4 {[%emt 0:00:00]} 50. Rf5 {[%emt 0:00:00]} Kd5 {[%emt 0:00:00] Hoping for ...Ke4.} 51. Kf2 {[%emt 0:00:00]} Ke4 {[%emt 0:00:00]} 52. Rf8 {[%emt 0:00:00]} Rxg5 {[%emt 0:00:00] ( -> ...Rf5+)} 53. Ra8 {[%emt 0:00:00]} Kf5 {[%emt 0:00:00]} 54. Re8 {[%emt 0:00:04] Weighted Error Value: White=0.34/Black=0.27 (precise)} 1/2-1/2

[Event "GER-chT States Women 2022"]
[Site "Braunfels"]
[Date "2022.06.16"]
[Round "1.21"]
[White "Balazs, Kata"]
[Black "Ankerst, Milka"]
[Result "1/2-1/2"]
[ECO "A45"]
[WhiteElo "1679"]
[BlackElo "1931"]
[Annotator "TA"]
[PlyCount "118"]
[EventDate "2022.06.15"]
[EventType "swiss"]
[EventCountry "GER"]
[SourceTitle "playchess.com"]
[Source "ChessBase"]
[SourceQuality "1"]
[TimeControl "40/5400+30:1800+30"]

{[%evp 9,118,11,58,42,94,53,62,56,118,113,175,165,179,160,167,164,160,161,147,58,117,35,193,202,212,133,194,189,278,282,335,186,194,88,88,92,123,123,140,116,181,186,200,147,150,130,161,147,165,104,152,79,109,106,104,99,86,84,127,119,180,82,197,108,191,195,225,220,243,250,225,240,235,228,221,87,198,105,93,107,89,0,0,0,0,0,8,-8,0,0,0,0,0,0,0,0,0,0,0,0,0,0,0,0,0,0,-4,-4,-4,-4,29991]} 1. d4 {[%emt 0:00:04]} Nf6 {[%emt 0:00:15]} 2. Nc3 {[%emt 0:00:14]} d5 {[%emt 0:00:38]} 3. Bf4 {[%emt 0:00:21]} c6 {[%emt 0:01:24]} 4. e3 {[%emt 0:02:16]} Bf5 {[%emt 0:00:57]} 5. f3 {[%emt 0:01:24]} g6 {[%emt 0:02:35] [#]} (5... h6 $11) 6. Qd2 $146 {[%emt 0:03:15] D00: 1 d4 d5: Unusual lines.} ({Predecessor:} 6. g4 Bc8 7. h4 h5 8. g5 Nfd7 9. Qd2 Bg7 10. O-O-O e5 11. Bg3 exd4 12. exd4 {0-1 (35) Yang,K (2275)-Kalinina,L (2131) Chess.com INT 2020}) 6... Nbd7 {[%emt 0:01:21]} (6... Bg7 $14) 7. Nge2 {[%emt 0:04:25]} Nb6 {[%emt 0:01:33]} 8. Ng3 {[%emt 0:06:45] White is slightly better.} Qd7 {[%emt 0:05:08]} (8... h5 $14) 9. e4 {[%emt 0:10:06]} dxe4 {[%emt 0:03:06]} (9... Be6 $16) 10. fxe4 $18 (10. Ngxe4 $6 Qe6 $11) (10. Ncxe4 Bxe4 11. fxe4 (11. Nxe4 Nxe4 12. fxe4 Bg7 $11) 11... h5 $11) 10... Qe6 {[%emt 0:13:22][%cal Rf5e4]} 11. Be5 $36 {[%emt 0:14:19][%mdl 2048] White is on the roll.} (11. Nxf5 Nxe4 12. Nxe4 Qxe4+ 13. Be2 Qxf5 $11) 11... Bg4 {[%emt 0:18:41]} 12. h3 {[%emt 0:01:18]} Bh5 {[%emt 0:00:31]} 13. Nxh5 {[%emt 0:02:17]} gxh5 {[%emt 0:03:42]} 14. Qe2 {[%emt 0:15:44]} (14. Qe3 $16) 14... Rg8 {[%emt 0:02:37]} (14... Bh6 $14) 15. O-O-O {[%emt 0:01:40]} (15. Bf4 $16) 15... Bh6+ $2 {[%emt 0:02:21]} ({Better is} 15... Na4 $14) 16. Kb1 {[%emt 0:00:21]} h4 {[%emt 0:00:23]} 17. Qf2 {[%emt 0:02:56]} Bg5 {[%emt 0:00:36]} (17... Nbd7 $16 {was called for.}) 18. Bd3 {[%emt 0:03:12]} Nh5 {[%emt 0:10:58]} (18... Nfd7 $142) 19. Rhf1 {[%emt 0:04:31]} Nf6 {[%emt 0:05:17]} 20. Bxf6 {[%emt 0:03:27]} (20. a4 $142) 20... Qxf6 {[%emt 0:03:34]} 21. Qxf6 {[%emt 0:00:46]} (21. Qe2 $1 $18 Qxd4 22. Ba6 $1 {[%mdl 512]}) 21... Bxf6 $16 {[%emt 0:00:25]} 22. e5 {[%emt 0:00:34]} Bh8 {[%emt 0:00:29]} 23. Rd2 {[%emt 0:03:32]} h6 {[%emt 0:02:44]} 24. Rdf2 {[%emt 0:02:07] 0x0.000bd7323fcedp-1022s more active pieces.} Rg7 {[%emt 0:00:17]} (24... f6 $16) 25. a3 $18 {[%emt 0:01:05]} Rd8 {[%emt 0:01:31]} 26. Ne2 {[%emt 0:01:22]} Nd5 {[%emt 0:00:37]} 27. Bc4 {[%emt 0:02:47]} e6 {[%emt 0:02:43] Strongly threatening ...Ne3.} 28. Bxd5 {[%emt 0:00:21]} Rxd5 {[%emt 0:00:44]} 29. c3 {[%emt 0:01:22]} (29. Rf6 $18) 29... b6 {[%emt 0:00:28]} ({Black should play} 29... c5) 30. b4 {[%emt 0:03:48]} ({White should try} 30. Rf6) 30... Rd7 $16 {[%emt 0:01:15][%cal Oc6c5]} 31. Kc2 {[%emt 0:00:57]} c5 {[%emt 0:00:21]} 32. bxc5 {[%emt 0:01:17]} bxc5 {[%emt 0:00:02]} 33. Rb1 $1 {[%emt 0:00:54]} (33. dxc5 $6 Rg5 $11) 33... Ke7 {[%emt 0:02:38]} 34. Rb8 {[%emt 0:02:14]} (34. dxc5 Rg5 $14) 34... Rh7 {[%emt 0:00:11] [#]} (34... Rd8 $16 35. Rb5 cxd4 36. Nxd4 Ke8) 35. Rf4 {[%emt 0:00:30]} (35. Rc8 $1 $18) 35... f6 {[%emt 0:02:03]} (35... cxd4 $16 {might work better.} 36. cxd4 f6) 36. Re4 {[%emt 0:04:18]} (36. dxc5 $6 f5 $16) (36. Rxh4 $18 {aiming for Nf4.} fxe5 37. dxc5) 36... fxe5 {[%emt 0:02:10]} (36... cxd4 $16 {keeps fighting.} 37. Rxd4 Rc7) 37. dxe5 $18 {[%emt 0:00:07]} ({Much less strong is} 37. dxc5 $6 Bf6 $14) 37... h5 {[%emt 0:01:24]} 38. Nf4 {[%emt 0:01:34]} Kf7 {[%emt 0:00:15] Against Ng6} 39. Rc8 {[%emt 0:00:40]} Bg7 {[%emt 0:00:24]} 40. Rxc5 {[%emt 0:00:49]} Bh6 {[%emt 0:01:41]} 41. Rc6 {[%emt 0:05:24]} ({Resist} 41. Nxh5 $6 Kg6 $16) 41... Rg7 {[%emt 0:02:55]} 42. c4 {[%emt 0:05:03]} ({Don't take} 42. Nxh5 $6 Rxg2+ 43. Kb3 Rb7+ 44. Kc4 Rb6 45. Rxb6 axb6 $16) (42. Nxe6 $18 {has better winning chances.} Rxg2+ 43. Kb3) 42... Rg3 {[%emt 0:09:55]} (42... Bxf4 $16 43. Rxf4+ Ke7) 43. Rxe6 {[%emt 0:05:30] The board is on fire.} (43. Rd6 $18 Rxd6 44. exd6) 43... Rxg2+ $16 {[%emt 0:04:36]} 44. Nxg2 {[%emt 0:01:53]} Kxe6 {[%emt 0:00:13] [#]} 45. Nxh4 $18 {[%emt 0:00:36][%mdl 4096] Endgame KRB-KRN} (45. Nf4+ $1 $16 Bxf4 46. Rxf4) 45... Rd2+ $1 $11 {[%emt 0:01:17] The position is equal.} 46. Kc3 {[%emt 0:00:38] Black must now prevent Nf3.} Rh2 {[%emt 0:00:30]} 47. Kd4 {[%emt 0:04:32]} Rxh3 {[%emt 0:01:01]} 48. Ng6 {[%emt 0:00:53][%cal Oe4f4]} Rxa3 {[%emt 0:03:55] Hoping for ...Rg3.} 49. Nf4+ {[%emt 0:01:26]} Bxf4 {[%emt 0:01:31]} 50. Rxf4 {[%emt 0:00:05] KR-KR} a5 {[%emt 0:03:11][%cal Ba7a5,Ba5a4][%mdl 32]} 51. Rh4 {[%emt 0:02:15]} Ra1 {[%emt 0:00:37]} 52. Rxh5 {[%emt 0:00:41]} Rd1+ {[%emt 0:00:29]} 53. Kc5 {[%emt 0:00:23]} a4 {[%emt 0:02:15]} 54. Rh3 {[%emt 0:03:26]} Ra1 {[%emt 0:01:32]} 55. Re3 {[%emt 0:00:28]} a3 {[%emt 0:02:14]} 56. Kc6 {[%emt 0:03:21]} a2 {[%emt 0:00:51] ( -> ...Rb1)} (56... Rc1 $5 {[%cal Ra3a2]} 57. Rxa3 Rxc4+ 58. Kb5 Rh4 $11) 57. Ra3 {[%emt 0:01:22]} Rc1 {[%emt 0:02:12]} 58. Rxa2 {[%emt 0:00:14]} Rxc4+ {[%emt 0:00:10]} 59. Kb5 {[%emt 0:00:33]} Ke7 $2 {[%emt 0:02:42][%mdl 40960] Weighted Error Value: White=0.29 (precise) /Black=0.31. An unexpected result.} 1/2-1/2

[Event "GER-chT States Women 2022"]
[Site "Braunfels"]
[Date "2022.06.16"]
[Round "1.22"]
[White "Spiel, Marianne"]
[Black "Grabowski, Petra"]
[Result "1/2-1/2"]
[ECO "C10"]
[WhiteElo "1910"]
[BlackElo "1635"]
[Annotator "TA"]
[PlyCount "80"]
[EventDate "2022.06.15"]
[EventType "swiss"]
[EventCountry "GER"]
[SourceTitle "playchess.com"]
[Source "ChessBase"]
[SourceQuality "1"]
[TimeControl "40/5400+30:1800+30"]

{[%evp 15,80,20,59,52,53,22,31,2,28,18,19,16,41,41,55,50,62,66,57,48,59,52,64,55,81,84,107,70,178,91,100,92,92,90,118,123,185,84,78,56,74,67,74,69,76,61,69,60,83,83,95,85,95,46,37,23,110,117,120,80,87,87,106,90,75,45,50]} 1. e4 {[%emt 0:00:04]} e6 {[%emt 0:00:06]} 2. d4 {[%emt 0:00:21]} d5 {[%emt 0:00:10]} 3. Nd2 {[%emt 0:00:07]} dxe4 {[%emt 0:00:37]} 4. Nxe4 {[%emt 0:00:08]} Nd7 {[%emt 0:00:08]} 5. Nf3 {[%emt 0:01:47]} Ngf6 {[%emt 0:00:32]} 6. Bd3 {[%emt 0:01:46]} Nxe4 {[%emt 0:01:39]} 7. Bxe4 {[%emt 0:00:47]} Nf6 {[%emt 0:01:32]} 8. Bd3 {[%emt 0:00:13]} h6 {[%emt 0:02:27]} 9. O-O {[%emt 0:00:51] C10: French with 3 Nc3: Unusual Black 3rd moves and 3...dxe4.} c5 {[%emt 0:01:26]} 10. c3 {[%emt 0:04:36]} cxd4 {[%emt 0:02:52]} 11. Nxd4 {[%emt 0:02:11]} Bc5 {[%emt 0:02:42]} 12. Bf4 {[%emt 0:06:42] [#]} Bxd4 $146 {[%emt 0:04:48]} ({Predecessor:} 12... O-O 13. Be5 Bd7 14. a4 Bxd4 15. Bxd4 Bc6 16. Re1 Re8 17. f3 Nd5 18. g3 e5 19. Rxe5 Rxe5 20. Bxe5 {½-½ (48) Bischof,W (2015)-Kraetschmer,K (2035) Bayern 2001}) 13. Qa4+ {[%emt 0:02:13]} Bd7 {[%emt 0:07:17]} 14. Qxd4 {[%emt 0:01:26]} O-O {[%emt 0:02:17]} 15. Rad1 {[%emt 0:02:48]} Bc6 {[%emt 0:03:09]} 16. Qe5 {[%emt 0:02:44][%cal Od3h7]} Qe7 {[%emt 0:09:26]} 17. Qe2 {[%emt 0:08:20][%cal Of4d6]} Nd5 {[%emt 0:07:15]} 18. Be5 {[%emt 0:00:53] Hoping for c4.} f6 {[%emt 0:11:49]} 19. Bg3 {[%emt 0:07:35] c4 is the strong threat.} f5 {[%emt 0:09:48]} 20. Be5 {[%emt 0:03:51]} f4 {[%emt 0:11:22][%cal Of4f3]} 21. Be4 {[%emt 0:10:45] A strong pair of Bishops.} ({Reject} 21. Qe4 $6 Rf5 22. Qd4 Nxc3 $1 23. Bxf4 (23. bxc3 Qg5 $15) 23... Nxd1 24. Bxf5 exf5 $11) 21... Qf7 {[%emt 0:04:38] [#]} (21... Qg5 $14) 22. Qd3 {[%emt 0:07:00]} (22. Rd4 $1 $18) 22... Ne7 {[%emt 0:00:56]} 23. f3 {[%emt 0:03:46]} Bxe4 {[%emt 0:00:23]} 24. Qxe4 {[%emt 0:00:36] Black must now prevent Rd7.} ({Much weaker is} 24. fxe4 Ng6 25. Bd6 Rfd8 $14) 24... Nd5 {[%emt 0:01:35]} 25. Rfe1 {[%emt 0:01:49]} Qf5 {[%emt 0:02:30] [#]} (25... Rad8 $16 {was necessary.} 26. b3 Rd7) 26. Qxf5 {[%emt 0:13:01]} (26. c4 $1 $18 {[%cal Rc4d5] and White stays clearly on top.} Qxe4 27. Rxe4 (27. fxe4 Ne3 $14)) 26... Rxf5 $16 {[%emt 0:00:02]} 27. Rd4 {[%emt 0:02:06]} g5 {[%emt 0:04:31]} 28. Rde4 {[%emt 0:01:27]} Kf7 {[%emt 0:03:26]} 29. Bd4 {[%emt 0:00:34]} Nc7 {[%emt 0:00:35]} 30. a3 {[%emt 0:00:52]} b6 {[%emt 0:00:34]} 31. c4 {[%emt 0:00:34]} Re8 {[%emt 0:00:36]} 32. Be5 {[%emt 0:00:51]} Rc8 {[%emt 0:01:56]} 33. Rd1 {[%emt 0:02:09] Threatens to win with Rd7+.} Ke7 {[%emt 0:01:00] Prevents Rd7+.} 34. b3 {[%emt 0:00:23]} (34. Bd6+ $16 Kf7 35. Bb4) 34... Ne8 $14 {[%emt 0:00:45]} 35. Bc3 {[%emt 0:00:36]} Rc6 {[%emt 0:01:04]} (35... Nf6 $11) 36. Bb4+ $16 {[%emt 0:00:35]} Kf6 {[%emt 0:00:24]} 37. a4 {[%emt 0:01:34]} e5 {[%emt 0:00:34]} 38. Rd8 {[%emt 0:00:55]} Re6 {[%emt 0:00:34]} 39. Rd7 {[%emt 0:02:11]} a5 {[%emt 0:00:09]} 40. Ba3 {[%emt 0:00:17] White is much more active.} Kg6 {[%emt 0:00:42] Weighted Error Value: White=0.16 (very precise) /Black=0.18 (very precise)} 1/2-1/2

[Event "GER-chT States Women 2022"]
[Site "Braunfels"]
[Date "2022.06.16"]
[Round "1.23"]
[White "Hielscher, Ursula"]
[Black "Schilay, Eva"]
[Result "1/2-1/2"]
[ECO "D06"]
[WhiteElo "1717"]
[BlackElo "1691"]
[Annotator "NA RC COMBH"]
[PlyCount "71"]
[EventDate "2022.06.15"]
[EventType "swiss"]
[EventCountry "GER"]
[SourceTitle "playchess.com"]
[Source "ChessBase"]
[SourceQuality "1"]
[TimeControl "40/5400+30:1800+30"]

1. d4 {[%emt 0:30:07]} d5 {[%emt 0:00:07]} 2. c4 {[%emt 0:00:03]} Nf6 {[%emt 0:05:09]} 3. Nc3 {[%emt 0:00:32]} c6 {[%emt 0:03:00]} 4. e3 {[%emt 0:00:57]} Bf5 {[%emt 0:01:24]} 5. Be2 {[%emt 0:03:49]} e6 {[%emt 0:01:57]} 6. Nf3 {[%emt 0:01:16]} Bd6 {[%emt 0:03:23]} 7. h3 {[%emt 0:04:34]} Nbd7 {[%emt 0:01:44]} 8. O-O {[%emt 0:00:48]} O-O {[%emt 0:03:14]} 9. cxd5 {[%emt 0:03:50]} cxd5 {[%emt 0:02:19]} 10. Nb5 {[%emt 0:02:30]} Be7 {[%emt 0:03:27]} 11. Bd2 {[%emt 0:00:38]} a6 {[%emt 0:07:34]} 12. Nc3 {[%emt 0:00:15]} h6 {[%emt 0:00:13]} 13. Rc1 {[%emt 0:01:41]} Rc8 {[%emt 0:01:38]} 14. Qb3 {[%emt 0:01:58]} Qb6 {[%emt 0:05:07]} 15. Qxb6 {[%emt 0:01:07]} Nxb6 {[%emt 0:00:02]} 16. Ne5 {[%emt 0:00:31]} Nbd7 {[%emt 0:04:53]} 17. Nd3 {[%emt 0:03:37]} Rc6 {[%emt 0:05:11]} 18. Na4 {[%emt 0:03:17]} Rfc8 {[%emt 0:00:18]} 19. Rxc6 {[%emt 0:00:19]} Rxc6 {[%emt 0:00:01]} 20. Rc1 {[%emt 0:00:20]} Rxc1+ {[%emt 0:02:40]} 21. Nxc1 {[%emt 0:00:02]} Ne4 {[%emt 0:01:46]} 22. Be1 {[%emt 0:02:48]} Kf8 {[%emt 0:06:21]} 23. b4 {[%emt 0:04:12]} Bf6 {[%emt 0:18:49]} 24. b5 {[%emt 0:06:23]} axb5 {[%emt 0:01:57]} 25. Bxb5 {[%emt 0:00:02]} Nb8 {[%emt 0:00:17]} 26. Bb4+ {[%emt 0:01:09]} Be7 {[%emt 0:00:07]} 27. Bxe7+ {[%emt 0:01:41]} Kxe7 {[%emt 0:00:01]} 28. f3 {[%emt 0:03:26]} Nd6 {[%emt 0:01:16]} 29. Bd3 {[%emt 0:00:37]} Nc6 {[%emt 0:01:00]} 30. Bxf5 {[%emt 0:01:39]} Nxf5 {[%emt 0:00:07]} 31. Kf2 {[%emt 0:00:24]} Kd6 {[%emt 0:04:06]} 32. Nc5 {[%emt 0:01:56]} b6 {[%emt 0:01:33]} 33. Na4 {[%emt 0:00:17]} b5 {[%emt 0:01:07]} 34. Nc3 {[%emt 0:00:31]} b4 {[%emt 0:01:23]} 35. N3e2 {[%emt 0:03:27]} Kc7 {[%emt 0:02:20]} 36. Nd3 {[%emt 0:02:04]} 1/2-1/2

[Event "GER-chT States Women 2022"]
[Site "Braunfels"]
[Date "2022.06.16"]
[Round "1.24"]
[White "Schaefer, Ann-Kathrin"]
[Black "Zoellner, Bente"]
[Result "1/2-1/2"]
[ECO "A48"]
[WhiteElo "1680"]
[BlackElo "1589"]
[Annotator "NA RC COMBH"]
[PlyCount "62"]
[EventDate "2022.06.15"]
[EventType "swiss"]
[EventCountry "GER"]
[SourceTitle "playchess.com"]
[Source "ChessBase"]
[SourceQuality "1"]
[TimeControl "40/5400+30:1800+30"]

1. d4 {[%emt 0:00:02]} Nf6 {[%emt 0:00:11]} 2. Nf3 {[%emt 0:00:06]} g6 {[%emt 0:00:19]} 3. e3 {[%emt 0:00:42]} Bg7 {[%emt 0:00:18]} 4. Bd3 {[%emt 0:02:06]} O-O {[%emt 0:02:42]} 5. O-O {[%emt 0:00:38]} d6 {[%emt 0:00:33]} 6. h3 {[%emt 0:01:46]} Nbd7 {[%emt 0:00:48]} 7. c3 {[%emt 0:02:09]} c5 {[%emt 0:00:36]} 8. Nbd2 {[%emt 0:01:08]} Rb8 {[%emt 0:02:04]} 9. e4 {[%emt 0:04:02]} b5 {[%emt 0:02:06]} 10. e5 {[%emt 0:02:01]} Nd5 {[%emt 0:01:54]} 11. exd6 {[%emt 0:04:38]} exd6 {[%emt 0:00:24]} 12. Ne4 {[%emt 0:01:33]} Qc7 {[%emt 0:03:54]} 13. dxc5 {[%emt 0:09:46]} dxc5 {[%emt 0:01:32]} 14. Bxb5 {[%emt 0:05:20]} Nxc3 {[%emt 0:10:29]} 15. Nxc3 {[%emt 0:01:47]} Bxc3 {[%emt 0:00:29]} 16. Bxd7 {[%emt 0:02:38]} Ba6 {[%emt 0:00:43]} 17. bxc3 {[%emt 0:08:32]} Bxf1 {[%emt 0:00:17]} 18. Kxf1 {[%emt 0:04:11]} Rfd8 {[%emt 0:00:51]} 19. Qa4 {[%emt 0:02:17]} Qxd7 {[%emt 0:01:42]} 20. Qxd7 {[%emt 0:02:38]} Rxd7 {[%emt 0:00:09]} 21. Ne5 {[%emt 0:03:06]} Rd1+ {[%emt 0:02:47]} 22. Ke2 {[%emt 0:00:15]} Rbd8 {[%emt 0:01:13]} 23. Nc4 {[%emt 0:07:47]} f5 {[%emt 0:05:11]} 24. Bb2 {[%emt 0:05:40]} R1d5 {[%emt 0:02:22]} 25. Rb1 {[%emt 0:03:06]} Re8+ {[%emt 0:02:00]} 26. Kf1 {[%emt 0:01:13]} Re4 {[%emt 0:03:00]} 27. Ne3 {[%emt 0:04:17]} Rd2 {[%emt 0:01:26]} 28. Ke1 {[%emt 0:07:13]} Rd7 {[%emt 0:09:28]} 29. Kf1 {[%emt 0:01:22]} Rd2 {[%emt 0:03:23]} 30. Ke1 {[%emt 0:00:31]} Rd7 {[%emt 0:06:31]} 31. Kf1 {[%emt 0:00:24]} Rd2 {[%emt 0:08:05]} 1/2-1/2